[Event "Titled Tuesday Blitz January 03 Early 2023"]
[White "Melikhov, Evgeny V."]
[Black "Tran, Thanh Tu"]
[WhiteFideId "4122046"]
[BlackFideId "12401404"]
[WhiteElo "2269"]
[BlackElo "2412"]
[Result "0-1"]
[Round "08"]
[TimeControl "180+2"]
[Date "2023.01.03"]
[WhiteClock "0:00:11"]
[BlackClock "0:00:11"]

1. d4 {[%clk 0:03:00]}  Nc6 {[%clk 0:02:59]} 2. d5 {[%clk 0:02:54]}  Nb8 {[%clk 0:02:58]} 3. e4 {[%clk 0:02:52]}  d6 {[%clk 0:02:59]} 4. c4 {[%clk 0:02:51]}  Nf6 {[%clk 0:02:59]} 5. Nc3 {[%clk 0:02:51]}  g6 {[%clk 0:03:00]} 6. f3 {[%clk 0:02:43]}  Bg7 {[%clk 0:03:00]} 7. Be3 {[%clk 0:02:43]}  c6 {[%clk 0:03:00]} 8. Qd2 {[%clk 0:02:41]}  a6 {[%clk 0:02:57]} 9. Bh6 {[%clk 0:02:35]}  Bxh6 {[%clk 0:02:54]} 10. Qxh6 {[%clk 0:02:34]}  b5 {[%clk 0:02:40]} 11. h4 {[%clk 0:02:22]}  Qb6 {[%clk 0:02:00]} 12. O-O-O {[%clk 0:02:15]}  b4 {[%clk 0:01:46]} 13. Nce2 {[%clk 0:02:10]}  cxd5 {[%clk 0:01:42]} 14. cxd5 {[%clk 0:02:10]}  Bd7 {[%clk 0:01:31]} 15. Kb1 {[%clk 0:02:06]}  Bb5 {[%clk 0:01:27]} 16. Nc1 {[%clk 0:02:03]}  Nbd7 {[%clk 0:01:25]} 17. Nge2 {[%clk 0:01:57]}  Rc8 {[%clk 0:01:18]} 18. Nd4 {[%clk 0:01:54]}  Bxf1 {[%clk 0:01:10]} 19. Rhxf1 {[%clk 0:01:54]}  Ne5 {[%clk 0:01:08]} 20. Nc6 {[%clk 0:01:22]}  Nxc6 {[%clk 0:01:05]} 21. dxc6 {[%clk 0:01:21]}  Qxc6 {[%clk 0:01:04]} 22. Nb3 {[%clk 0:01:14]}  Qc2+ {[%clk 0:01:02]} 23. Ka1 {[%clk 0:01:14]}  Qxg2 {[%clk 0:01:00]} 24. Rc1 {[%clk 0:01:11]}  Kd7 {[%clk 0:00:45]} 25. Qe3 {[%clk 0:01:05]}  Rxc1+ {[%clk 0:00:28]} 26. Rxc1 {[%clk 0:01:04]}  Rd8 {[%clk 0:00:25]} 27. e5 {[%clk 0:00:47]}  dxe5 {[%clk 0:00:22]} 28. Rd1+ {[%clk 0:00:43]}  Ke8 {[%clk 0:00:22]} 29. Rxd8+ {[%clk 0:00:42]}  Kxd8 {[%clk 0:00:23]} 30. Qb6+ {[%clk 0:00:40]}  Kc8 {[%clk 0:00:18]} 31. Qxa6+ {[%clk 0:00:32]}  Kc7 {[%clk 0:00:18]} 32. Qa7+ {[%clk 0:00:30]}  Kd6 {[%clk 0:00:18]} 33. Qb6+ {[%clk 0:00:27]}  Kd5 {[%clk 0:00:18]} 34. Qb7+ {[%clk 0:00:20]}  Ke6 {[%clk 0:00:17]} 35. Qc6+ {[%clk 0:00:14]}  Kf5 {[%clk 0:00:15]} 36. a4 {[%clk 0:00:13]}  bxa3 {[%clk 0:00:12]} 37. bxa3 {[%clk 0:00:12]}  Kf4 {[%clk 0:00:12]} 38. a4 {[%clk 0:00:11]}  Qxf3 {[%clk 0:00:07]} 39. Qxf3+ {[%clk 0:00:11]}  Kxf3 {[%clk 0:00:07]} 40. a5 {[%clk 0:00:12]}  Nd5 {[%clk 0:00:07]} 41. a6 {[%clk 0:00:12]}  Nb6 {[%clk 0:00:06]} 42. a7 {[%clk 0:00:12]}  e4 {[%clk 0:00:06]} 43. Nc5 {[%clk 0:00:12]}  e3 {[%clk 0:00:06]} 44. Kb2 {[%clk 0:00:09]}  e2 {[%clk 0:00:06]} 45. Nd3 {[%clk 0:00:09]}  f6 {[%clk 0:00:06]} 46. Kc3 {[%clk 0:00:09]}  e5 {[%clk 0:00:06]} 47. Kb4 {[%clk 0:00:09]}  e4 {[%clk 0:00:07]} 48. Ne1+ {[%clk 0:00:09]}  Kf2 {[%clk 0:00:07]} 49. Nc2 {[%clk 0:00:09]}  e1=Q+ {[%clk 0:00:07]} 50. Nxe1 {[%clk 0:00:09]}  Kxe1 {[%clk 0:00:07]} 51. Kb5 {[%clk 0:00:09]}  Na8 {[%clk 0:00:08]} 52. Kc6 {[%clk 0:00:10]}  e3 {[%clk 0:00:08]} 53. Kb7 {[%clk 0:00:10]}  e2 {[%clk 0:00:09]} 54. Kxa8 {[%clk 0:00:10]}  Kf1 {[%clk 0:00:09]} 55. Kb8 {[%clk 0:00:10]}  e1=Q {[%clk 0:00:10]} 56. a8=Q {[%clk 0:00:11]}  Qe8+ {[%clk 0:00:10]} 57. Kb7 {[%clk 0:00:11]}  Qxa8+ {[%clk 0:00:10]} 58. Kxa8 {[%clk 0:00:11]}  Kg2 {[%clk 0:00:11]} 0-1


[Site "https://www.chess.com"]

[Event "Titled Tuesday Blitz January 03 Early 2023"]
[White "Krstic, Milos"]
[Black "Viskelis, Darius"]
[WhiteFideId "954888"]
[BlackFideId "12800830"]
[WhiteElo "2183"]
[BlackElo "2166"]
[Result "0-1"]
[Round "08"]
[TimeControl "180+2"]
[Date "2023.01.03"]
[WhiteClock "0:02:02"]
[BlackClock "0:01:50"]

1. e4 {[%clk 0:02:56]}  c5 {[%clk 0:02:59]} 2. Nf3 {[%clk 0:02:56]}  g6 {[%clk 0:02:59]} 3. d4 {[%clk 0:02:56]}  cxd4 {[%clk 0:03:00]} 4. Nxd4 {[%clk 0:02:57]}  Bg7 {[%clk 0:03:01]} 5. Nc3 {[%clk 0:02:57]}  Nc6 {[%clk 0:03:01]} 6. Be3 {[%clk 0:02:58]}  Nf6 {[%clk 0:03:01]} 7. Bc4 {[%clk 0:02:58]}  O-O {[%clk 0:03:01]} 8. Bb3 {[%clk 0:02:58]}  d5 {[%clk 0:02:51]} 9. exd5 {[%clk 0:02:54]}  Nb4 {[%clk 0:02:51]} 10. Nde2 {[%clk 0:02:43]}  a5 {[%clk 0:02:48]} 11. a3 {[%clk 0:02:43]}  Na6 {[%clk 0:02:26]} 12. O-O {[%clk 0:02:42]}  Bd7 {[%clk 0:02:04]} 13. Qd2 {[%clk 0:02:33]}  b5 {[%clk 0:02:04]} 14. Nd4 {[%clk 0:02:27]}  a4 {[%clk 0:02:04]} 15. Ba2 {[%clk 0:02:27]}  b4 {[%clk 0:02:04]} 16. axb4 {[%clk 0:02:26]}  Nxb4 {[%clk 0:02:04]} 17. Bc4 {[%clk 0:02:11]}  Qc7 {[%clk 0:02:00]} 18. b3 {[%clk 0:02:11]}  Ng4 {[%clk 0:01:52]} 19. Ncb5 {[%clk 0:02:02]}  Qxh2# {[%clk 0:01:50]} 0-1


[Site "https://www.chess.com"]

[Event "Titled Tuesday Blitz January 03 Early 2023"]
[White "Sargsyan, Anna M."]
[Black "Corredor Castellanos, Camilo"]
[WhiteFideId "13308130"]
[BlackFideId "4425871"]
[WhiteElo "2375"]
[BlackElo "1957"]
[Result "1-0"]
[Round "08"]
[TimeControl "180+2"]
[Date "2023.01.03"]
[WhiteClock "0:01:35"]
[BlackClock "0:00:12"]

1. d4 {[%clk 0:02:59]}  d5 {[%clk 0:02:59]} 2. c4 {[%clk 0:02:58]}  e6 {[%clk 0:02:59]} 3. Nf3 {[%clk 0:02:57]}  Nf6 {[%clk 0:02:58]} 4. Nc3 {[%clk 0:02:57]}  a6 {[%clk 0:02:52]} 5. cxd5 {[%clk 0:02:46]}  exd5 {[%clk 0:02:51]} 6. Bg5 {[%clk 0:02:46]}  Be7 {[%clk 0:02:50]} 7. e3 {[%clk 0:02:46]}  O-O {[%clk 0:02:49]} 8. Bd3 {[%clk 0:02:47]}  Bg4 {[%clk 0:02:38]} 9. Qc2 {[%clk 0:02:42]}  h6 {[%clk 0:02:36]} 10. Bxf6 {[%clk 0:02:35]}  Bxf6 {[%clk 0:02:35]} 11. O-O-O {[%clk 0:02:27]}  Nc6 {[%clk 0:02:26]} 12. a3 {[%clk 0:02:23]}  Qd6 {[%clk 0:02:00]} 13. Rdg1 {[%clk 0:02:22]}  b5 {[%clk 0:01:58]} 14. Nxd5 {[%clk 0:02:15]}  Na5 {[%clk 0:01:10]} 15. Nxf6+ {[%clk 0:02:12]}  Qxf6 {[%clk 0:01:10]} 16. Ne5 {[%clk 0:02:13]}  Be6 {[%clk 0:01:08]} 17. g4 {[%clk 0:02:13]}  c5 {[%clk 0:01:05]} 18. Kb1 {[%clk 0:02:09]}  Bb3 {[%clk 0:00:54]} 19. Qxc5 {[%clk 0:02:04]}  Rfc8 {[%clk 0:00:47]} 20. Qb4 {[%clk 0:02:01]}  Qb6 {[%clk 0:00:25]} 21. Nd7 {[%clk 0:02:01]}  Qc7 {[%clk 0:00:24]} 22. Nc5 {[%clk 0:02:01]}  Bd5 {[%clk 0:00:23]} 23. e4 {[%clk 0:02:02]}  Bc4 {[%clk 0:00:23]} 24. Bc2 {[%clk 0:01:54]}  Qf4 {[%clk 0:00:22]} 25. Qxa5 {[%clk 0:01:51]}  Qxf2 {[%clk 0:00:22]} 26. Qc3 {[%clk 0:01:43]}  a5 {[%clk 0:00:21]} 27. g5 {[%clk 0:01:43]}  hxg5 {[%clk 0:00:21]} 28. Rxg5 {[%clk 0:01:41]}  Be6 {[%clk 0:00:19]} 29. Rhg1 {[%clk 0:01:41]}  g6 {[%clk 0:00:19]} 30. Qg3 {[%clk 0:01:36]}  b4 {[%clk 0:00:12]} 31. Qxf2 {[%clk 0:01:35]} 1-0


[Site "https://www.chess.com"]

[Event "Titled Tuesday Blitz January 03 Early 2023"]
[White "Tomaszewski, Kacper"]
[Black "Gressmann, Moritz"]
[WhiteFideId "1127373"]
[BlackFideId "24695084"]
[WhiteElo "2313"]
[BlackElo "2129"]
[Result "1/2-1/2"]
[Round "08"]
[TimeControl "180+2"]
[Date "2023.01.03"]
[WhiteClock "0:00:26"]
[BlackClock "0:01:36"]

1. e4 {[%clk 0:03:00]}  e5 {[%clk 0:02:59]} 2. Nf3 {[%clk 0:03:00]}  Nf6 {[%clk 0:03:00]} 3. Nc3 {[%clk 0:03:00]}  Nc6 {[%clk 0:03:00]} 4. h3 {[%clk 0:03:00]}  Bb4 {[%clk 0:02:57]} 5. Nd5 {[%clk 0:03:00]}  Bc5 {[%clk 0:02:55]} 6. Nxf6+ {[%clk 0:02:48]}  Qxf6 {[%clk 0:02:55]} 7. Bc4 {[%clk 0:02:46]}  d6 {[%clk 0:02:54]} 8. O-O {[%clk 0:02:44]}  h6 {[%clk 0:02:54]} 9. c3 {[%clk 0:02:44]}  O-O {[%clk 0:02:53]} 10. d3 {[%clk 0:02:43]}  a6 {[%clk 0:02:53]} 11. Be3 {[%clk 0:02:44]}  Ba7 {[%clk 0:02:49]} 12. Bd5 {[%clk 0:02:39]}  Ne7 {[%clk 0:02:48]} 13. Bb3 {[%clk 0:02:36]}  Ng6 {[%clk 0:02:47]} 14. d4 {[%clk 0:02:35]}  Nf4 {[%clk 0:02:46]} 15. dxe5 {[%clk 0:01:44]}  dxe5 {[%clk 0:02:45]} 16. Bxf4 {[%clk 0:01:39]}  Qxf4 {[%clk 0:02:45]} 17. Qd2 {[%clk 0:01:36]}  Qf6 {[%clk 0:02:43]} 18. Kh2 {[%clk 0:01:26]}  Rd8 {[%clk 0:02:32]} 19. Qe2 {[%clk 0:01:26]}  Bd7 {[%clk 0:02:32]} 20. Rfd1 {[%clk 0:01:21]}  Bb5 {[%clk 0:02:30]} 21. Bc4 {[%clk 0:01:17]}  Bc6 {[%clk 0:02:29]} 22. Bd5 {[%clk 0:01:03]}  Bxd5 {[%clk 0:02:29]} 23. Rxd5 {[%clk 0:01:02]}  c6 {[%clk 0:02:29]} 24. Rxd8+ {[%clk 0:00:55]}  Rxd8 {[%clk 0:02:30]} 25. Kg1 {[%clk 0:00:53]}  Qd6 {[%clk 0:02:25]} 26. Kf1 {[%clk 0:00:50]}  f6 {[%clk 0:02:23]} 27. Ke1 {[%clk 0:00:46]}  Qc5 {[%clk 0:02:16]} 28. Rc1 {[%clk 0:00:21]}  Kf7 {[%clk 0:02:07]} 29. b3 {[%clk 0:00:21]}  a5 {[%clk 0:01:54]} 30. Qc4+ {[%clk 0:00:20]}  Qxc4 {[%clk 0:01:54]} 31. bxc4 {[%clk 0:00:21]}  b5 {[%clk 0:01:43]} 32. cxb5 {[%clk 0:00:21]}  cxb5 {[%clk 0:01:44]} 33. Ke2 {[%clk 0:00:21]}  Rb8 {[%clk 0:01:40]} 34. Ne1 {[%clk 0:00:21]}  b4 {[%clk 0:01:38]} 35. cxb4 {[%clk 0:00:21]}  axb4 {[%clk 0:01:39]} 36. Rc7+ {[%clk 0:00:21]}  Kg6 {[%clk 0:01:38]} 37. Rxa7 {[%clk 0:00:22]}  b3 {[%clk 0:01:38]} 38. axb3 {[%clk 0:00:23]}  Rxb3 {[%clk 0:01:39]} 39. Nf3 {[%clk 0:00:22]}  Rb2+ {[%clk 0:01:39]} 40. Kf1 {[%clk 0:00:23]}  Rb1+ {[%clk 0:01:40]} 41. Ne1 {[%clk 0:00:23]}  h5 {[%clk 0:01:37]} 42. g3 {[%clk 0:00:23]}  Rc1 {[%clk 0:01:35]} 43. h4 {[%clk 0:00:24]}  Rb1 {[%clk 0:01:35]} 44. Ke2 {[%clk 0:00:24]}  Rb2+ {[%clk 0:01:35]} 45. Kf3 {[%clk 0:00:25]}  Rb3+ {[%clk 0:01:35]} 46. Kg2 {[%clk 0:00:24]}  Rc3 {[%clk 0:01:36]} 47. Nf3 {[%clk 0:00:25]}  Rb3 {[%clk 0:01:36]} 48. Ra4 {[%clk 0:00:25]}  Rc3 {[%clk 0:01:36]} 49. Nd2 {[%clk 0:00:25]}  Rc2 {[%clk 0:01:36]} 50. Nc4 {[%clk 0:00:25]}  Re2 {[%clk 0:01:36]} 51. Nd6 {[%clk 0:00:25]}  Rd2 {[%clk 0:01:34]} 52. Nf5 {[%clk 0:00:25]}  Rd7 {[%clk 0:01:34]} 53. Rb4 {[%clk 0:00:25]}  Rc7 {[%clk 0:01:34]} 54. Rb6 {[%clk 0:00:25]}  Rd7 {[%clk 0:01:34]} 55. Rd6 {[%clk 0:00:25]}  Ra7 {[%clk 0:01:34]} 56. Rd8 {[%clk 0:00:25]}  Rb7 {[%clk 0:01:33]} 57. Rg8 {[%clk 0:00:25]}  Kh7 {[%clk 0:01:30]} 58. Re8 {[%clk 0:00:24]}  Ra7 {[%clk 0:01:30]} 59. Re7 {[%clk 0:00:25]}  Ra4 {[%clk 0:01:28]} 60. Rxg7+ {[%clk 0:00:25]}  Kh8 {[%clk 0:01:29]} 61. f3 {[%clk 0:00:21]}  Ra2+ {[%clk 0:01:29]} 62. Kg1 {[%clk 0:00:19]}  Rg2+ {[%clk 0:01:29]} 63. Kf1 {[%clk 0:00:19]}  Rf2+ {[%clk 0:01:29]} 64. Ke1 {[%clk 0:00:19]}  Re2+ {[%clk 0:01:30]} 65. Kd1 {[%clk 0:00:20]}  Rd2+ {[%clk 0:01:30]} 66. Kc1 {[%clk 0:00:20]}  Rc2+ {[%clk 0:01:31]} 67. Kb1 {[%clk 0:00:21]}  Rb2+ {[%clk 0:01:32]} 68. Ka1 {[%clk 0:00:21]}  Ra2+ {[%clk 0:01:32]} 69. Kb1 {[%clk 0:00:22]}  Rb2+ {[%clk 0:01:33]} 70. Kc1 {[%clk 0:00:22]}  Rc2+ {[%clk 0:01:33]} 71. Kd1 {[%clk 0:00:23]}  Rd2+ {[%clk 0:01:34]} 72. Ke1 {[%clk 0:00:24]}  Re2+ {[%clk 0:01:35]} 73. Kf1 {[%clk 0:00:25]}  Rf2+ {[%clk 0:01:35]} 74. Kg1 {[%clk 0:00:25]}  Rg2+ {[%clk 0:01:36]} 75. Kxg2 {[%clk 0:00:26]} 1/2-1/2


[Site "https://www.chess.com"]

[Event "Titled Tuesday Blitz January 03 Early 2023"]
[White "Fernandez Garcia, Gumersindo"]
[Black "Schut, Han"]
[WhiteFideId "24516740"]
[BlackFideId "1005561"]
[WhiteElo "2160"]
[BlackElo "2101"]
[Result "1-0"]
[Round "08"]
[TimeControl "180+2"]
[Date "2023.01.03"]
[WhiteClock "0:00:39"]
[BlackClock "0:00:01"]

1. f4 {[%clk 0:03:00]}  d5 {[%clk 0:02:58]} 2. b3 {[%clk 0:03:01]}  c5 {[%clk 0:02:50]} 3. Bb2 {[%clk 0:03:02]}  Nc6 {[%clk 0:02:51]} 4. Nf3 {[%clk 0:03:02]}  Bg4 {[%clk 0:02:48]} 5. e3 {[%clk 0:03:02]}  Rc8 {[%clk 0:02:46]} 6. Be2 {[%clk 0:03:00]}  Nf6 {[%clk 0:02:46]} 7. O-O {[%clk 0:03:00]}  g6 {[%clk 0:02:45]} 8. d3 {[%clk 0:03:00]}  Bg7 {[%clk 0:02:44]} 9. Nbd2 {[%clk 0:02:59]}  O-O {[%clk 0:02:40]} 10. c4 {[%clk 0:02:53]}  Nb4 {[%clk 0:02:33]} 11. a3 {[%clk 0:02:49]}  Bxf3 {[%clk 0:02:31]} 12. Nxf3 {[%clk 0:02:45]}  Nc6 {[%clk 0:02:27]} 13. Qd2 {[%clk 0:02:31]}  b6 {[%clk 0:02:19]} 14. h3 {[%clk 0:02:26]}  Nh5 {[%clk 0:02:12]} 15. Bxg7 {[%clk 0:02:24]}  Kxg7 {[%clk 0:02:12]} 16. Qb2+ {[%clk 0:02:23]}  Kg8 {[%clk 0:02:07]} 17. Kh2 {[%clk 0:02:12]}  d4 {[%clk 0:02:02]} 18. exd4 {[%clk 0:02:10]}  cxd4 {[%clk 0:01:51]} 19. b4 {[%clk 0:02:10]}  Nxf4 {[%clk 0:01:50]} 20. g3 {[%clk 0:02:05]}  Nh5 {[%clk 0:01:42]} 21. Ng5 {[%clk 0:01:58]}  e5 {[%clk 0:01:37]} 22. Ne4 {[%clk 0:01:56]}  f5 {[%clk 0:01:32]} 23. Nf2 {[%clk 0:01:51]}  Qg5 {[%clk 0:01:27]} 24. Bxh5 {[%clk 0:01:42]}  Qxh5 {[%clk 0:01:27]} 25. Rae1 {[%clk 0:01:42]}  Rce8 {[%clk 0:01:25]} 26. Qd2 {[%clk 0:01:36]}  f4 {[%clk 0:01:23]} 27. g4 {[%clk 0:01:35]}  Qh4 {[%clk 0:01:23]} 28. Ne4 {[%clk 0:01:35]}  f3 {[%clk 0:01:04]} 29. Qg5 {[%clk 0:01:29]}  Qxg5 {[%clk 0:00:57]} 30. Nxg5 {[%clk 0:01:29]}  h6 {[%clk 0:00:37]} 31. Ne4 {[%clk 0:01:29]}  Rf4 {[%clk 0:00:27]} 32. Rf2 {[%clk 0:01:27]}  Ref8 {[%clk 0:00:24]} 33. Ref1 {[%clk 0:01:24]}  Nd8 {[%clk 0:00:17]} 34. Kg3 {[%clk 0:01:23]}  Ne6 {[%clk 0:00:17]} 35. a4 {[%clk 0:01:16]}  Kg7 {[%clk 0:00:14]} 36. a5 {[%clk 0:01:16]}  bxa5 {[%clk 0:00:13]} 37. bxa5 {[%clk 0:01:17]}  R8f7 {[%clk 0:00:11]} 38. h4 {[%clk 0:01:15]}  Rb7 {[%clk 0:00:10]} 39. Rxf3 {[%clk 0:01:12]}  Rb3 {[%clk 0:00:10]} 40. g5 {[%clk 0:01:04]}  h5 {[%clk 0:00:09]} 41. Nd6 {[%clk 0:00:59]}  Rxf3+ {[%clk 0:00:09]} 42. Rxf3 {[%clk 0:00:58]}  Nf4 {[%clk 0:00:09]} 43. Nb5 {[%clk 0:00:55]}  Rxd3 {[%clk 0:00:08]} 44. Nxa7 {[%clk 0:00:52]}  Rc3 {[%clk 0:00:05]} 45. Nb5 {[%clk 0:00:42]}  Rxc4 {[%clk 0:00:02]} 46. Ra3 {[%clk 0:00:42]}  Rc8 {[%clk 0:00:02]} 47. a6 {[%clk 0:00:42]}  Ra8 {[%clk 0:00:02]} 48. a7 {[%clk 0:00:42]}  d3 {[%clk 0:00:03]} 49. Kf3 {[%clk 0:00:40]}  d2 {[%clk 0:00:01]} 50. Ra1 {[%clk 0:00:39]} 1-0


[Site "https://www.chess.com"]

[Event "Titled Tuesday Blitz January 03 Early 2023"]
[White "Guliev, Logman"]
[Black "Koridze, Lile"]
[WhiteFideId "13400061"]
[BlackFideId "13612514"]
[WhiteElo "2250"]
[BlackElo "2191"]
[Result "1-0"]
[Round "08"]
[TimeControl "180+2"]
[Date "2023.01.03"]
[WhiteClock "0:02:07"]
[BlackClock "0:01:02"]

1. e4 {[%clk 0:02:55]}  c5 {[%clk 0:02:59]} 2. Nf3 {[%clk 0:02:55]}  d6 {[%clk 0:02:59]} 3. d4 {[%clk 0:02:55]}  cxd4 {[%clk 0:02:59]} 4. Nxd4 {[%clk 0:02:55]}  Nf6 {[%clk 0:03:00]} 5. Nc3 {[%clk 0:02:55]}  a6 {[%clk 0:03:00]} 6. f4 {[%clk 0:02:54]}  e5 {[%clk 0:02:59]} 7. Nf3 {[%clk 0:02:54]}  Nbd7 {[%clk 0:02:57]} 8. Bd3 {[%clk 0:02:53]}  b5 {[%clk 0:02:55]} 9. O-O {[%clk 0:02:54]}  Bb7 {[%clk 0:02:55]} 10. Kh1 {[%clk 0:02:54]}  Be7 {[%clk 0:02:54]} 11. a3 {[%clk 0:02:55]}  O-O {[%clk 0:02:54]} 12. Nh4 {[%clk 0:02:55]}  exf4 {[%clk 0:02:53]} 13. Bxf4 {[%clk 0:02:54]}  Ne5 {[%clk 0:02:53]} 14. Nf5 {[%clk 0:02:53]}  Re8 {[%clk 0:02:35]} 15. Bg5 {[%clk 0:02:51]}  Ned7 {[%clk 0:02:27]} 16. Ne2 {[%clk 0:02:41]}  h6 {[%clk 0:02:20]} 17. Bh4 {[%clk 0:02:39]}  Kh8 {[%clk 0:01:49]} 18. Ned4 {[%clk 0:02:26]}  Qb6 {[%clk 0:01:28]} 19. Nxe7 {[%clk 0:02:16]}  Qxd4 {[%clk 0:01:24]} 20. Nf5 {[%clk 0:02:15]}  Qb6 {[%clk 0:01:19]} 21. Nxh6 {[%clk 0:02:13]}  Rf8 {[%clk 0:01:02]} 22. Bxf6 {[%clk 0:02:09]}  Nxf6 {[%clk 0:01:02]} 23. Rxf6 {[%clk 0:02:08]}  gxf6 {[%clk 0:01:02]} 24. Qh5 {[%clk 0:02:08]}  Kg7 {[%clk 0:01:02]} 25. Nf5+ {[%clk 0:02:07]}  Kg8 {[%clk 0:01:02]} 26. Qg4+ {[%clk 0:02:07]} 1-0


[Site "https://www.chess.com"]

[Event "Titled Tuesday Blitz January 03 Early 2023"]
[White "Begunov, Konstantin"]
[Black "Wieczorek, Zbigniew"]
[WhiteFideId "4118510"]
[BlackFideId "1102001"]
[WhiteElo "2325"]
[BlackElo "2150"]
[Result "1-0"]
[Round "08"]
[TimeControl "180+2"]
[Date "2023.01.03"]
[WhiteClock "0:00:16"]
[BlackClock "0:00:02"]

1. d4 {[%clk 0:03:00]}  d5 {[%clk 0:02:51]} 2. c4 {[%clk 0:03:00]}  c6 {[%clk 0:02:48]} 3. Nc3 {[%clk 0:03:01]}  Nf6 {[%clk 0:02:48]} 4. Nf3 {[%clk 0:03:01]}  g6 {[%clk 0:02:47]} 5. cxd5 {[%clk 0:03:00]}  cxd5 {[%clk 0:02:47]} 6. Bf4 {[%clk 0:03:00]}  a6 {[%clk 0:02:47]} 7. e3 {[%clk 0:03:01]}  Bg7 {[%clk 0:02:47]} 8. Bd3 {[%clk 0:03:01]}  Nc6 {[%clk 0:02:47]} 9. Ne5 {[%clk 0:03:00]}  Bd7 {[%clk 0:02:46]} 10. O-O {[%clk 0:02:59]}  O-O {[%clk 0:02:46]} 11. Qe2 {[%clk 0:02:56]}  e6 {[%clk 0:02:45]} 12. h3 {[%clk 0:02:52]}  Nxe5 {[%clk 0:02:45]} 13. Bxe5 {[%clk 0:02:52]}  Bc6 {[%clk 0:02:45]} 14. Rfc1 {[%clk 0:02:51]}  Nd7 {[%clk 0:02:45]} 15. Bxg7 {[%clk 0:02:50]}  Kxg7 {[%clk 0:02:46]} 16. Rc2 {[%clk 0:02:50]}  e5 {[%clk 0:02:39]} 17. dxe5 {[%clk 0:02:47]}  Nxe5 {[%clk 0:02:39]} 18. Rd1 {[%clk 0:02:44]}  Qe7 {[%clk 0:02:26]} 19. Rcd2 {[%clk 0:02:41]}  Rfd8 {[%clk 0:02:24]} 20. Bb1 {[%clk 0:02:39]}  Qe6 {[%clk 0:01:53]} 21. a3 {[%clk 0:02:37]}  Rd7 {[%clk 0:01:44]} 22. Ba2 {[%clk 0:02:36]}  Nc4 {[%clk 0:01:38]} 23. Rd4 {[%clk 0:02:10]}  b5 {[%clk 0:01:35]} 24. e4 {[%clk 0:01:46]}  dxe4 {[%clk 0:01:28]} 25. Rxd7 {[%clk 0:01:46]}  Bxd7 {[%clk 0:01:29]} 26. Nxe4 {[%clk 0:01:37]}  Bc6 {[%clk 0:01:29]} 27. Bxc4 {[%clk 0:01:25]}  Qxe4 {[%clk 0:01:06]} 28. Qxe4 {[%clk 0:01:21]}  Bxe4 {[%clk 0:01:07]} 29. Bb3 {[%clk 0:01:19]}  Ra7 {[%clk 0:01:07]} 30. f3 {[%clk 0:01:17]}  Bf5 {[%clk 0:01:01]} 31. Rd6 {[%clk 0:01:15]}  h5 {[%clk 0:00:49]} 32. h4 {[%clk 0:00:57]}  Kf8 {[%clk 0:00:32]} 33. Rb6 {[%clk 0:00:53]}  Ke7 {[%clk 0:00:29]} 34. Kf2 {[%clk 0:00:54]}  Bc8 {[%clk 0:00:26]} 35. Ke3 {[%clk 0:00:49]}  Rc7 {[%clk 0:00:25]} 36. Rb8 {[%clk 0:00:34]}  Bb7 {[%clk 0:00:20]} 37. g3 {[%clk 0:00:20]}  Bc8 {[%clk 0:00:10]} 38. Rb6 {[%clk 0:00:19]}  Rc1 {[%clk 0:00:07]} 39. Bd5 {[%clk 0:00:18]}  Rb1 {[%clk 0:00:06]} 40. b4 {[%clk 0:00:18]}  Ra1 {[%clk 0:00:05]} 41. Rc6 {[%clk 0:00:18]}  Bd7 {[%clk 0:00:04]} 42. Rxa6 {[%clk 0:00:17]}  Rb1 {[%clk 0:00:02]} 43. Ra7 {[%clk 0:00:16]}  Kd6 {[%clk 0:00:02]} 44. Bxf7 {[%clk 0:00:16]}  Re1+ {[%clk 0:00:02]} 45. Kf4 {[%clk 0:00:16]} 1-0


[Site "https://www.chess.com"]

[Event "Titled Tuesday Blitz January 03 Early 2023"]
[White "Zherebtsova, Alexandra"]
[Black "MIM06"]
[WhiteFideId "24129518"]
[WhiteElo "2155"]
[BlackElo "2273"]
[Result "0-1"]
[Round "08"]
[TimeControl "180+2"]
[Date "2023.01.03"]
[WhiteClock "0:00:08"]
[BlackClock "0:00:49"]

1. d4 {[%clk 0:03:00]}  Nf6 {[%clk 0:02:59]} 2. Nf3 {[%clk 0:03:01]}  g6 {[%clk 0:02:59]} 3. c4 {[%clk 0:03:00]}  Bg7 {[%clk 0:02:57]} 4. Nc3 {[%clk 0:03:00]}  d5 {[%clk 0:02:57]} 5. e3 {[%clk 0:03:00]}  O-O {[%clk 0:02:57]} 6. Qb3 {[%clk 0:03:01]}  c5 {[%clk 0:02:56]} 7. dxc5 {[%clk 0:03:00]}  dxc4 {[%clk 0:02:55]} 8. Bxc4 {[%clk 0:03:00]}  Nc6 {[%clk 0:02:55]} 9. Be2 {[%clk 0:02:45]}  e5 {[%clk 0:02:32]} 10. O-O {[%clk 0:02:39]}  Qe7 {[%clk 0:02:32]} 11. Na4 {[%clk 0:02:34]}  Be6 {[%clk 0:02:30]} 12. Qa3 {[%clk 0:02:27]}  Rac8 {[%clk 0:02:19]} 13. b4 {[%clk 0:02:19]}  e4 {[%clk 0:02:14]} 14. Nd4 {[%clk 0:02:11]}  Nxd4 {[%clk 0:02:10]} 15. exd4 {[%clk 0:02:11]}  Nd5 {[%clk 0:02:11]} 16. Rd1 {[%clk 0:01:40]}  Rfd8 {[%clk 0:02:06]} 17. Bb2 {[%clk 0:01:36]}  Nf4 {[%clk 0:01:56]} 18. Bf1 {[%clk 0:01:36]}  Nd5 {[%clk 0:01:38]} 19. Nc3 {[%clk 0:01:28]}  Nf4 {[%clk 0:01:29]} 20. Nxe4 {[%clk 0:01:09]}  Bd5 {[%clk 0:01:27]} 21. Ng3 {[%clk 0:00:52]}  h5 {[%clk 0:01:21]} 22. Qe3 {[%clk 0:00:43]}  Ne6 {[%clk 0:01:09]} 23. Ne4 {[%clk 0:00:25]}  Kh7 {[%clk 0:01:00]} 24. Nd6 {[%clk 0:00:25]}  Rxd6 {[%clk 0:01:00]} 25. cxd6 {[%clk 0:00:24]}  Qxd6 {[%clk 0:01:01]} 26. a3 {[%clk 0:00:19]}  Bh6 {[%clk 0:00:56]} 27. Qg3 {[%clk 0:00:15]}  Bf4 {[%clk 0:00:56]} 28. Qd3 {[%clk 0:00:13]}  Bxh2+ {[%clk 0:00:55]} 29. Kh1 {[%clk 0:00:14]}  Bf4 {[%clk 0:00:51]} 30. Re1 {[%clk 0:00:14]}  Qe7 {[%clk 0:00:48]} 31. Re5 {[%clk 0:00:09]}  Qh4+ {[%clk 0:00:48]} 32. Qh3 {[%clk 0:00:09]}  Qxh3+ {[%clk 0:00:48]} 33. Kg1 {[%clk 0:00:08]}  Qh2# {[%clk 0:00:49]} 0-1


[Site "https://www.chess.com"]